lending/lending_fUSD_20250424
["ID","MTS","AMOUNT","RATE_DAILY","PERIOD"]
[358818163,1745464241796,-6653.0,0.0002,2]
[358818164,1745464241805,-5648.70171331,0.0002,2]
[358818165,1745464241815,-2920306.40634283,0.0002,2]
[358818166,1745464241940,-574.68623725,0.0002,2]
[358818237,1745464242724,-5.22602271,0.0002,2]
[358818380,1745464243980,-1078.61063024,0.000199,2]
[358818418,1745464244342,996.0,0.00037808,60]
[358818592,1745464246202,-54.38936976,0.000199,2]
[358818594,1745464246212,-675.39652017,0.00019999,2]
[358818817,1745464292386,13347.62110274,5e-05,2]
[358818818,1745464327209,2934.006134,0.00037808,60]
[358818819,1745464453495,250.0,0.00017,2]
[358818820,1745464459646,-178.16970658,0.00019,2]
[358818821,1745464495879,10447.0,0.00037808,60]
[358818822,1745464523952,649.27,0.00017323,2]
[358818823,1745464524510,-121.83029342,0.00019,2]
[358818826,1745464842351,-167.87503161,0.00019052,2]
[358818827,1745464911190,200.0,0.00018906,2]
[358818828,1745464954823,188.26,0.000189,2]
[358818829,1745465025471,386.655343,0.00037808,60]
[358818830,1745465030391,386.655343,0.00019871,7]
[358818831,1745465041877,181.75,0.00018902,2]
[358818832,1745465225120,-832.12496839,0.00019052,2]
[358818833,1745465225147,-250.0,0.00019077,2]
[358818834,1745465225172,-2521.93,0.00019102,2]
[358818835,1745465225198,-190.41123278,0.00019203,2]
[358818836,1745465225223,-1200.0,0.00019303,2]
[358818837,1745465225250,-300.0,0.00019303,2]
[358818838,1745465225274,-850.0,0.00019303,2]
[358818839,1745465225299,-500.0,0.00019304,2]
[358818840,1745465225324,-500.0,0.00019304,2]
[358818841,1745465225348,-500.0,0.00019304,2]
[358818842,1745465225374,-500.0,0.00019304,2]
[358818843,1745465225400,-200.26026947,0.00019304,2]
[358818844,1745465225426,-500.0,0.00019304,2]
[358818845,1745465225458,-500.0,0.00019304,2]
[358818846,1745465225483,-500.0,0.00019304,2]
[358818847,1745465225508,-500.0,0.00019304,2]
[358818848,1745465225534,-500.0,0.00019304,2]
[358818849,1745465225559,-500.0,0.00019304,2]
[358818850,1745465225586,-500.0,0.00019304,2]
[358818851,1745465225612,-500.0,0.00019304,2]
[358818852,1745465225641,-15555.27352936,0.00019305,2]
[358818861,1745465360483,253.38,0.00018894,2]
[358818864,1745465405971,279.63,0.00018883,2]
[358818865,1745465418571,250.0,0.00018887,2]
[358818879,1745465431648,-207.4,0.00019294,2]
[358818880,1745465431659,-188.91780772,0.00019299,2]
[358818881,1745465431668,-93.06731164,0.00019299,2]
[358818885,1745465431894,-350.0,0.00019299,2]
[358818904,1745465432066,-56.93268836,0.00019299,2]
[358818906,1745465432076,-302.59662275,0.00019304,2]
[358818908,1745465432088,-300.0,0.00019304,2]
[358818910,1745465432099,-339.44976473,0.00019304,2]
[358819428,1745465437537,-257.95361252,0.00019304,2]
[358819430,1745465437548,-300.0,0.00019304,2]
[358819432,1745465437559,-8344.72647064,0.00019305,2]
[358819434,1745465437569,-166.7,0.00019518,2]
[358819436,1745465437579,-649.27,0.00019587,2]
[358819438,1745465437590,-1000.0,0.000197,2]
[358819440,1745465437600,-150.0,0.00019733,2]
[358819442,1745465437610,-150.0,0.00019738,2]
[358819444,1745465437620,-150.0,0.00019738,2]
[358819447,1745465437630,-150.0,0.00019739,2]
[358819449,1745465437640,-150.0,0.00019763,2]
[358819451,1745465437650,-150.0,0.00019774,2]
[358819453,1745465437659,-1510.118,0.00019799,2]
[358819455,1745465437669,-188.8901399,0.00019799,2]
[358819457,1745465437679,-190.41123277,0.00019805,2]
[358819459,1745465437689,-150.0,0.00019806,2]
[358819461,1745465437699,-386.19269162,0.00019816,2]
[358819463,1745465437713,-150.0,0.00019831,2]
[358819465,1745465437723,-150.0,0.00019839,2]
[358819467,1745465437733,-150.0,0.00019848,2]
[358819469,1745465437743,-150.0,0.00019848,2]
[358819471,1745465437756,-150.0,0.00019851,2]
[358819473,1745465437765,-150.0,0.00019861,2]
[358819475,1745465437777,-5790.0,0.00019889,2]
[358819477,1745465437787,-918.0,0.00019889,2]
[358819480,1745465437797,-799.0,0.00019899,2]
[358819482,1745465437808,-725.629,0.000199,2]
[358819484,1745465437818,-2500.0,0.000199,2]
[358819486,1745465437829,-11090.61789984,0.000199,2]
[358819488,1745465437839,-287.63787259,0.000199,2]
[358819490,1745465437848,-1628.09709762,0.000199,2]
[358819492,1745465437857,-3186.28659111,0.000199,2]
[358819494,1745465437868,-228.34903713,0.000199,2]
[358819497,1745465437878,-4749.48658081,0.000199,2]
[358819499,1745465437895,-150.0,0.00019916,2]
[358819501,1745465437906,-150.0,0.00019919,2]
[358819503,1745465437916,-1064.41619898,0.00019926,2]
[358819505,1745465437926,-150.0,0.00019927,2]
[358819507,1745465437937,-150.0,0.00019936,2]
[358819508,1745465437948,-205.21480445,0.00019973,2]
[358819509,1745465437958,-500.0,0.00019973,2]
[358819510,1745465437969,-668.65185757,0.00019974,2]
[358819511,1745465437980,-16784.0159985,0.00019976,2]
[358819512,1745465437990,-154.84,0.00019976,2]
[358819513,1745465438000,-154.84,0.00019976,2]
[358819514,1745465438012,-154.84,0.00019976,2]
[358819515,1745465438022,-154.84,0.00019976,2]
[358819516,1745465438033,-110127.12336653,0.00019976,2]
[358819517,1745465438043,-150.0,0.00019979,2]
[358819518,1745465438053,-154.84,0.0001998,2]
[358819519,1745465438063,-2687.7535646,0.00019986,2]
[358819520,1745465438073,-4606.4177042,0.00019986,2]
[358819521,1745465438084,-2204.6471466,0.00019986,2]
[358819522,1745465438094,-2375.7598037,0.00019986,2]
[358819523,1745465438105,-108092.821982,0.00019986,2]
[358819524,1745465438115,-3448.4032137,0.00019986,2]
[358819525,1745465438127,-28303.1708095,0.00019986,2]
[358819526,1745465438136,-11473.8802826,0.00019986,2]
[358819527,1745465438146,-154.84,0.00019989,2]
[358819528,1745465438156,-154.84,0.0001999,2]
[358819529,1745465438166,-807.11835544,0.0001999,2]
[358819530,1745465438175,-807.11835544,0.0001999,2]
[358819531,1745465438185,-807.11835544,0.0001999,2]
[358819532,1745465438195,-243.11802442,0.00019993,2]
[358819533,1745465438204,-300.0,0.00019999,2]
[358819534,1745465438214,-904.01107937,0.00019999,2]
[358819535,1745465438225,-150.0,0.00019999,2]
[358819536,1745465438235,-500.0,0.00019999,2]
[358819537,1745465438246,-150.0,0.00019999,2]
[358819538,1745465438256,-150.0,0.00019999,2]
[358819539,1745465438266,-500.0,0.00019999,2]
[358819540,1745465438275,-150.0,0.00019999,2]
[358819541,1745465438286,-500.0,0.00019999,2]
[358819542,1745465438298,-500.0,0.00019999,2]
[358819543,1745465438308,-151.53725633,0.00019999,2]
[358819545,1745465438323,-10775.07564837,0.00019999,2]
[358819547,1745465438335,-500.0,0.00019999,2]
[358819549,1745465438345,-500.0,0.00019999,2]
[358819551,1745465438355,-150.0,0.00019999,2]
[358819553,1745465438365,-1717.0,0.00019999,2]
[358819555,1745465438375,-1222.0,0.0002,2]
[358819557,1745465438386,-940230.1274591,0.0002,2]
[358819559,1745465438397,-255.63013331,0.0002,2]
[358819561,1745465438407,-1271069.8034907,0.0002,2]
[358819564,1745465438421,-2281307.8188913,0.0002,2]
[358819566,1745465438432,-3950.0,0.0002,2]
[358819568,1745465438442,-1250.73651205,0.0002,2]
[358819570,1745465438452,-11833.08510451,0.0002,2]
[358819572,1745465438462,-1009.17759778,0.0002,2]
[358819574,1745465438472,-1757.19290998,0.0002,2]
[358819576,1745465438482,-250.0,0.0002,2]
[358819578,1745465438492,-250.0,0.0002,2]
[358819580,1745465438502,-250.0,0.0002,2]
[358819582,1745465438512,-250.0,0.0002,2]
[358819584,1745465438522,-250.0,0.0002,2]
[358819586,1745465438532,-250.0,0.0002,2]
[358819588,1745465438542,-250.0,0.0002,2]
[358819591,1745465438554,-250.0,0.0002,2]
[358819593,1745465438565,-250.0,0.0002,2]
[358819595,1745465438575,-250.0,0.0002,2]
[358819597,1745465438586,-304.9,0.0002,2]
[358819599,1745465438596,-250.0,0.0002,2]
[358819601,1745465438606,-197.0,0.0002,2]
[358819603,1745465438615,-241.0,0.0002,2]
[358819605,1745465438625,-150.402,0.0002,2]
[358819607,1745465438636,-163.785,0.0002,2]
[358819608,1745465438646,-154.247,0.0002,2]
[358819609,1745465438656,-150.479,0.0002,2]
[358819610,1745465438666,-150.0,0.0002,2]
[358819611,1745465438676,-152.349,0.0002,2]
[358819612,1745465438686,-253.434,0.0002,2]
[358819613,1745465438696,-241.931,0.0002,2]
[358819614,1745465438709,-182.381,0.0002,2]
[358819615,1745465438719,-172.624,0.0002,2]
[358819616,1745465438729,-258.736,0.0002,2]
[358819617,1745465438739,-156.74,0.0002,2]
[358819618,1745465438751,-2470.557146,0.0002,2]
[358819619,1745465438760,-386.15906047,0.0002,2]
[358819620,1745465438770,-2934.006134,0.0002,2]
[358819621,1745465438780,-796.0,0.0002,2]
[358819622,1745465438791,-1445.0,0.0002,2]
[358819623,1745465438802,-910.0,0.0002,2]
[358819624,1745465438812,-578.0,0.0002,2]
[358819625,1745465438822,-1285.0,0.0002,2]
[358819626,1745465438832,-548.0,0.0002,2]
[358819627,1745465438843,-200.74282385,0.0002,2]
[358819628,1745465438853,-500.0,0.0002,2]
[358819629,1745465438864,-500.0,0.0002,2]
[358819630,1745465438874,-500.0,0.0002,2]
[358819631,1745465438883,-150.0,0.0002,2]
[358819632,1745465438894,-500.0,0.0002,2]
[358819633,1745465438903,-500.0,0.0002,2]
[358819634,1745465438914,-500.0,0.0002,2]
[358819635,1745465438925,-500.0,0.0002,2]
[358819636,1745465438935,-153.11859306,0.0002,2]
[358819637,1745465438945,-152.5973865,0.0002,2]
[358819638,1745465438955,-150.0,0.0002,2]
[358819639,1745465438966,-2542.0,0.0002,2]
[358819640,1745465438976,-500.0,0.0002,2]
[358819641,1745465438991,-500.0,0.0002,2]
[358819642,1745465439000,-386.655343,0.0002,2]
[358819643,1745465439011,-167942.6694975,0.0002,2]
[358819710,1745465440019,-932.3423989,0.0002,2]
[358819820,1745465441215,-582.17374953,0.00019999,2]
[358819831,1745465441311,-95.83455999,0.00019999,2]
[358819833,1745465441321,-1475.50067681,0.0002,2]
[358819835,1745465441332,-320.05088707,0.0002,2]
[358819837,1745465441343,-1082.56054419,0.0002,2]
[358819859,1745465441533,-494.87159407,0.0002,2]
[358819861,1745465441547,-5043913.9671287,0.0002,2]
[358820055,1745465443399,-1120.49234923,0.00019889,2]
[358820068,1745465443523,-214.50765077,0.00019889,2]
[358820070,1745465443535,-443.87095124,0.00019999,2]
[358820074,1745465443569,-234.13735828,0.00019999,2]
[358820076,1745465443580,-24.19909489,0.00019999,2]
[358820078,1745465443594,-1077.80090511,0.00019999,2]
[358820080,1745465443605,-306.48156674,0.0002,2]
[358820083,1745465443618,-7800.0,0.0002,2]
[358820292,1745465445847,-678.00830952,0.00019999,2]
[358820294,1745465445856,-6671.87480117,0.0002,2]
[358820577,1745465519289,584.34,0.00017676,2]
[358820583,1745465722730,4924.22392616,0.00037808,120]
[358820584,1745465725214,1000.0,0.00018883,2]
[358820595,1745466006669,-290.38717263,0.00019,2]
[358820598,1745466013186,-827.25866825,0.00019,2]
[358820606,1745466286049,250.0,0.00017,2]
[358820607,1745466288190,-300.0,0.00019,2]
[358820608,1745466290712,-228.00681,0.00019,2]
[358820609,1745466303518,-152.0,0.00018999,2]
[358820610,1745466362460,-271.03250172,0.00018999,2]
[358820611,1745466364727,-152.0,0.00018999,2]
[358820613,1745466425614,-194.42542069,0.00018999,2]
[358820616,1745466602234,-165.1517837,0.00018999,2]
[358820626,1745466631706,-134.8482163,0.00018999,2]
[358820627,1745466631717,-1196.13433746,0.00018999,2]
[358821017,1745466637656,-3.86566254,0.00018999,2]
[358821018,1745466637666,-166.93734912,0.00019,2]
[358821019,1745466637677,-1812.59,0.00019,2]
[358821020,1745466637688,-1812.59,0.00019,2]
[358821021,1745466637698,-300.0,0.00019,2]
[358821022,1745466637707,-250.0,0.00019,2]
[358821023,1745466637717,-250.0,0.00019145,2]
[358821024,1745466637726,-23900.0,0.00019456,2]
[358821025,1745466637736,-1812.59,0.000196,2]
[358821026,1745466637745,-1764.0,0.000197,2]
[358821027,1745466637755,-243.11802442,0.00019742,2]
[358821028,1745466637764,-166.7,0.00019755,2]
[358821029,1745466637773,-179.445633,0.00019799,2]
[358821030,1745466637783,-150.0,0.000198,2]
[358821031,1745466637793,-343.26,0.000198,2]
[358821032,1745466637802,-150.0,0.00019909,2]
[358821069,1745466638243,-584.34,0.0001994,2]
[358821071,1745466638263,-2038.8383723,0.00019986,2]
[358821072,1745466638274,-4155.0877095,0.00019986,2]
[358821073,1745466638285,-6671.1013949,0.00019986,2]
[358821074,1745466638295,-81585.5587056,0.00019986,2]
[358821075,1745466638304,-207.4,0.00019988,2]
[358821076,1745466638315,-151.0,0.00019988,2]
[358821077,1745466638325,-807.11835544,0.0001999,2]
[358821078,1745466638336,-807.11835544,0.0001999,2]
[358821079,1745466638347,-807.11835544,0.0001999,2]
[358821080,1745466638357,-300.0,0.00019999,2]
[358821081,1745466638366,-300.0,0.00019999,2]
[358821082,1745466638377,-312.66067017,0.00019999,2]
[358821083,1745466638387,-300.0,0.00019999,2]
[358821084,1745466638398,-1208.094,0.00019999,2]
[358821085,1745466638408,-548.8563387,0.00019999,2]
[358821086,1745466638417,-55667.37004628,0.00019999,2]
[358821087,1745466638428,-1122.0,0.00019999,2]
[358821088,1745466638437,-940230.1274591,0.0002,2]
[358821089,1745466638448,-1265738.14623287,0.0002,2]
[358821090,1745466639026,-2494318.525,0.0002,2]
[358821091,1745466639118,-292.21929414,0.0002,2]
[358821095,1745466640261,-411.64225403,0.00019999,2]
[358821096,1745466640271,-36.16056057,0.0002,2]
[358821097,1745466640308,-219.46957274,0.0002,2]
[358821098,1745466640319,-425.53042726,0.0002,2]
[358821099,1745466640430,-134.17367394,0.0002,2]
[358821100,1745466640604,-5043913.9671287,0.0002,2]
[358821146,1745466643047,-411.64225403,0.00019999,2]
[358821147,1745466643058,-983.35774597,0.0002,2]
[358821149,1745466643336,-1.80124651,0.0002,2]
[358821152,1745466645739,-411.64225403,0.00019999,2]
[358821153,1745466645749,-8543.42133975,0.0002,2]
[358821157,1745466646216,-1858.0,0.0002,2]
[358821160,1745466646245,-1849.27553374,0.0002,2]
[358821164,1745466674079,692.32,0.00017181,2]
[358821201,1745467223398,1383.512001,0.00037808,60]
[358821202,1745467230232,1383.512001,0.00019871,7]
[358821204,1745467249183,-167.93,0.00018996,2]
[358821205,1745467267192,166.66,0.00018962,2]
[358821214,1745467471651,250.0,0.00018939,2]
[358821215,1745467746788,657.7,0.00017134,2]
[358821216,1745467758032,179.0,0.00037808,60]
[358821224,1745467831870,-290.39,0.00019104,2]
[358821225,1745467831880,-354.357896,0.00019289,2]
[358821226,1745467832002,-645.642104,0.00019289,2]
[358821227,1745467832016,-173.12385924,0.00019319,2]
[358821228,1745467832028,-34.27614076,0.00019319,2]
[358821229,1745467832037,-300.0,0.00019329,2]
[358821230,1745467832047,-1200.0,0.00019329,2]
[358821231,1745467832056,-10036.81349685,0.0001933,2]
[358821232,1745467832073,-1885.935,0.0001933,2]
[358821233,1745467832084,-630.24830038,0.0001933,2]
[358821235,1745467835975,-468.26544494,0.0001933,2]
[358821236,1745467835991,-10878.73775783,0.0001933,2]
[358821237,1745467836008,-657.7,0.00019397,2]
[358821238,1745467836020,-105.91993651,0.00019727,2]
[358821239,1745467836051,-60.74006349,0.00019727,2]
[358821240,1745467836062,-12259.53253323,0.00019794,2]
[358821241,1745467836071,-170.4733513,0.00019799,2]
[358821242,1745467836082,-150.0,0.00019801,2]
[358821243,1745467836091,-1000.0,0.00019835,2]
[358821244,1745467836101,-500.0,0.00019836,2]
[358821245,1745467836111,-150.0,0.00019836,2]
[358821246,1745467836120,-162.01084814,0.00019886,2]
[358821247,1745467836130,-162.01084807,0.00019888,2]
[358821248,1745467836139,-162.01084807,0.0001989,2]
[358821249,1745467836149,-162.01084807,0.00019892,2]
[358821250,1745467836159,-162.01084807,0.00019894,2]
[358821251,1745467836168,-162.01084807,0.00019896,2]
[358821252,1745467836178,-162.01084807,0.00019898,2]
[358821253,1745467836187,-821.0,0.000199,2]
[358821255,1745467836197,-932.101,0.000199,2]
[358821256,1745467836206,-578.0,0.000199,2]
[358821257,1745467836216,-1454.343,0.000199,2]
[358821258,1745467836226,-1285.0,0.000199,2]
[358821259,1745467836237,-548.0,0.000199,2]
[358821260,1745467836246,-1133.0,0.000199,2]
[358821261,1745467836256,-198.901,0.000199,2]
[358821262,1745467836268,-257.099,0.000199,2]
[358821263,1745467836278,-2146.0,0.000199,2]
[358821264,1745467836287,-251.27740861,0.000199,2]
[358821265,1745467836300,-3734.72259139,0.000199,2]
[358821266,1745467836309,-1286.20740861,0.000199,2]
[358821267,1745467836321,-2475.883476,0.000199,2]
[358821290,1745467838479,-1594.10902335,0.000199,2]
[358821292,1745467838491,-433.80009204,0.000199,2]
[358821294,1745467838500,-19.1999057,0.000199,2]
[358821295,1745467838537,-856.8000943,0.000199,2]
[358821296,1745467838546,-871.0,0.000199,2]
[358821298,1745467838556,-166.49,0.000199,2]
[358821300,1745467838566,-161.75,0.000199,2]
[358821302,1745467838575,-18.06088235,0.000199,2]
[358821309,1745467838633,-143.68911765,0.000199,2]
[358821311,1745467838642,-906.72954269,0.000199,2]
[358821313,1745467838652,-162.01084807,0.000199,2]
[358821315,1745467838661,-386.15906047,0.000199,2]
[358821317,1745467838670,-477.18374491,0.000199,2]
[358821319,1745467838679,-150.0,0.00019933,2]
[358821321,1745467838689,-150.0,0.00019985,2]
[358821322,1745467838698,-14293.1198651,0.00019986,2]
[358821324,1745467838708,-2181.2815037,0.00019986,2]
[358821326,1745467838716,-48464.0664936,0.00019986,2]
[358821328,1745467838726,-1249.1646036,0.00019986,2]
[358821330,1745467838735,-45031.1166691,0.00019986,2]
[358821332,1745467838744,-5115.9094429,0.00019986,2]
[358821334,1745467838753,-151.0,0.00019988,2]
[358821336,1745467838765,-151.0,0.00019988,2]
[358821338,1745467838775,-668.65185757,0.00019988,2]
[358821340,1745467838785,-807.11835544,0.0001999,2]
[358821341,1745467838794,-807.11835544,0.0001999,2]
[358821342,1745467838803,-807.11835544,0.0001999,2]
[358821343,1745467838813,-500.0,0.00019999,2]
[358821344,1745467838822,-500.0,0.00019999,2]
[358821345,1745467838832,-500.0,0.00019999,2]
[358821346,1745467838841,-500.0,0.00019999,2]
[358821347,1745467838850,-500.0,0.00019999,2]
[358821348,1745467838859,-500.0,0.00019999,2]
[358821349,1745467838869,-500.0,0.00019999,2]
[358821350,1745467838878,-500.0,0.00019999,2]
[358821351,1745467838887,-500.0,0.00019999,2]
[358821352,1745467838896,-500.0,0.00019999,2]
[358821353,1745467838905,-500.0,0.00019999,2]
[358821354,1745467838914,-500.0,0.00019999,2]
[358821355,1745467838923,-500.0,0.00019999,2]
[358821356,1745467838933,-500.0,0.00019999,2]
[358821357,1745467838942,-396.75755062,0.00019999,2]
[358821358,1745467838951,-500.0,0.00019999,2]
[358821359,1745467838960,-500.0,0.00019999,2]
[358821360,1745467838969,-500.0,0.00019999,2]
[358821361,1745467838978,-500.0,0.00019999,2]
[358821362,1745467838987,-500.0,0.00019999,2]
[358821363,1745467838996,-500.0,0.00019999,2]
[358821364,1745467839005,-300.0,0.00019999,2]
[358821366,1745467839017,-300.0,0.00019999,2]
[358821368,1745467839026,-1644.09672093,0.00019999,2]
[358821370,1745467839036,-1208.094,0.00019999,2]
[358821372,1745467839047,-240.12464818,0.00019999,2]
[358821374,1745467839056,-55667.37004628,0.00019999,2]
[358821376,1745467839065,-500.0,0.00019999,2]
[358821378,1745467839075,-500.0,0.00019999,2]
[358821380,1745467839084,-500.0,0.00019999,2]
[358821382,1745467839093,-150.0,0.00019999,2]
[358821384,1745467839102,-500.0,0.00019999,2]
[358821385,1745467839111,-1226.0,0.00019999,2]
[358821387,1745467839121,-940230.1274591,0.0002,2]
[358821389,1745467839131,-1227492.58775495,0.0002,2]
[358821426,1745467839482,-2494318.525,0.0002,2]
[358821428,1745467839494,-656.67,0.0002,2]
[358821623,1745467842425,-240.12464818,0.00019999,2]
[358821624,1745467842435,-309.87535182,0.0002,2]
[358821625,1745467842446,-309.55328128,0.0002,2]
[358821641,1745467844174,-494.15689218,0.00019999,2]
[358821651,1745467846090,-5.84310782,0.00019999,2]
[358821652,1745467846100,-240.12464818,0.00019999,2]
[358821653,1745467846110,-2824.53149546,0.0002,2]
[358821654,1745467846170,-926.0,0.00019999,2]
[358821660,1745467846313,-180.0,0.00019999,2]
[358821661,1745467846324,-13734.452532,0.0002,2]
[358821742,1745467929166,1643.043435,0.00037808,60]
[358821743,1745467930862,1643.043435,0.00019871,7]
[358821744,1745468116033,250.0,0.00017,2]
[358821745,1745468137178,26880.03519651,0.00019998,4]
[358821747,1745468411867,153.2177401,0.00015,20]
[358821748,1745468621905,364.444182,0.00037808,60]
[358821749,1745468627312,364.444182,0.00019871,7]
[358821750,1745468676662,250.0,0.00018907,2]
[358821752,1745468835802,220.30403883,0.00015,2]
[358821753,1745468902656,1396.55,0.00018841,2]
[358821757,1745468943079,2621.36,0.00018833,2]
[358821760,1745469010640,23900.0,0.00018841,2]
[358821783,1745469031933,-296.0,0.00019,2]
[358821785,1745469031943,-177.1437296,0.00019,2]
[358821788,1745469032006,-118.8562704,0.00019,2]
[358821789,1745469032016,-296.0,0.00019,2]
[358821790,1745469032026,-300.0,0.00019,2]
[358821791,1745469032035,-250.0,0.00019,2]
[358821792,1745469032044,-1000.0,0.00019002,2]
[358821793,1745469032054,-250.0,0.00019113,2]
[358821794,1745469032068,-169.48,0.00019183,2]
[358821795,1745469032078,-187.45585164,0.00019381,2]
[358821796,1745469032090,-112.54414836,0.00019381,2]
[358821797,1745469032099,-1200.0,0.00019381,2]
[358821798,1745469032109,-507.0,0.00019589,2]
[358821799,1745469032118,-296.0,0.000196,2]
[358821800,1745469032128,-250.0,0.00019691,2]
[358821801,1745469032137,-799.0,0.000197,2]
[358821802,1745469032147,-150.0,0.00019742,2]
[358821803,1745469032156,-150.0,0.00019769,2]
[358821804,1745469032166,-161.9496837,0.00019799,2]
[358821805,1745469032175,-161.75,0.000198,2]
[358821806,1745469032185,-150.0,0.000198,2]
[358821807,1745469032195,-161.75,0.000198,2]
[358821808,1745469032204,-150.0,0.000198,2]
[358821809,1745469032214,-161.75,0.000198,2]
[358821810,1745469032224,-51.85791916,0.000198,2]
[358821811,1745469032235,-109.89208084,0.000198,2]
[358821812,1745469032245,-161.75,0.000198,2]
[358821813,1745469032255,-1277.06436113,0.000198,2]
[358821814,1745469032264,-150.0,0.00019805,2]
[358821815,1745469032274,-947.89329075,0.00019811,2]
[358821816,1745469032322,-329.17107032,0.00019811,2]
[358821817,1745469032332,-57.96115501,0.00019816,2]
[358821818,1745469032343,-92.03884499,0.00019816,2]
[358821819,1745469032353,-1277.06436107,0.00019822,2]
[358821820,1745469032362,-300.0,0.00019825,2]
[358821821,1745469032372,-166.7,0.00019826,2]
[358821822,1745469032381,-150.0,0.00019828,2]
[358821823,1745469032391,-616.19679394,0.00019833,2]
[358821826,1745469032430,-660.86756713,0.00019833,2]
[358821827,1745469032440,-385.0,0.00019842,2]
[358821828,1745469032450,-1277.06436107,0.00019844,2]
[358821829,1745469032460,-150.0,0.00019851,2]
[358821830,1745469032470,-1277.06436107,0.00019856,2]
[358821831,1745469032480,-1277.06436107,0.00019867,2]
[358821832,1745469032490,-500.0,0.00019873,2]
[358821834,1745469032499,-207.4,0.00019874,2]
[358821849,1745469032509,-1277.06436107,0.00019878,2]
[358821850,1745469032937,-153.8448,0.00019886,2]
[358821851,1745469032948,-73482.59455329,0.00019886,2]
[358821852,1745469032960,-914.81880699,0.00019886,2]
[358821853,1745469032971,-54855.33565918,0.00019886,2]
[358821854,1745469032983,-458.43,0.00019886,2]
[358821855,1745469033035,-693.43,0.00019886,2]
[358821856,1745469033047,-1895.58556209,0.00019886,2]
[358821859,1745469038041,-206.818,0.00019884,2]
[358821860,1745469038052,-257.099,0.00019884,2]
[358821861,1745469038063,-926.046,0.00019884,2]
[358821862,1745469038076,-1889.77000446,0.00019886,2]
[358821863,1745469038109,-8767.14151399,0.00019886,2]
[358821864,1745469038118,-4299.91554148,0.00019886,2]
[358821865,1745469038153,-1529.9557274,0.00019886,2]
[358821866,1745469038214,-366.12785766,0.00019886,2]
[358821868,1745469038307,-1436.1970962,0.00019886,2]
[358821922,1745469040337,-657.96086,0.00019886,2]
[358821923,1745469040446,-79813.74415295,0.00019886,2]
[358821924,1745469040456,-1277.06436107,0.00019889,2]
[358821925,1745469040465,-210.90712838,0.000199,2]
[358821926,1745469040475,-303.4537,0.000199,2]
[358821927,1745469040484,-150.0,0.000199,2]
[358821928,1745469040494,-267.21,0.000199,2]
[358821929,1745469040504,-150.0,0.000199,2]
[358821930,1745469040515,-728.64961454,0.000199,2]
[358821931,1745469040528,-1277.06436107,0.000199,2]
[358821932,1745469040538,-1000.0,0.000199,2]
[358821933,1745469040548,-150.0,0.00019919,2]
[358821934,1745469040558,-253.68321806,0.00019922,2]
[358821935,1745469040568,-150.0,0.0001994,2]
[358821936,1745469040578,-150.0,0.00019951,2]
[358821937,1745469040589,-500.0,0.00019973,2]
[358821938,1745469040600,-501.42407945,0.00019973,2]
[358821939,1745469040610,-510.75401508,0.00019973,2]
[358821940,1745469040619,-517.6822308,0.00019973,2]
[358821941,1745469040634,-500.0,0.00019973,2]
[358821942,1745469040644,-500.0,0.00019973,2]